bitfinex-derivatives/quotes_BNBF0:USTF0_20251027
["timestamp","ask_amount","ask_price","bid_price","bid_amount"]
[1761585365954,0.957,1148.1,1146.2,1.2952827]
[1761585366154,0.49533051,1148.0,1146.2,1.2952827]
[1761585366353,0.957,1148.1,1146.2,1.2952827]
[1761585366660,0.49535047,1148.0,1146.3,1.2952827]
[1761585366857,0.957,1148.1,1146.3,1.2952827]
[1761585367154,0.49535503,1148.0,1146.3,1.2952827]
[1761585367355,0.957,1148.1,1146.3,1.2952827]
[1761585367658,0.49534446,1148.0,1146.3,1.2952827]
[1761585367858,0.957,1148.1,1146.3,1.2952827]
[1761585368154,0.49507625,1148.0,1146.3,1.2952827]
[1761585368454,0.957,1148.1,1146.3,1.2952827]
[1761585368652,0.49502731,1148.0,1146.3,1.2952827]
[1761585368854,0.957,1148.1,1146.3,1.2952827]
[1761585369055,0.49487185,1148.0,1146.3,1.2952827]
[1761585369255,0.957,1148.1,1146.3,1.2952827]
[1761585369455,0.49493096,1148.0,1146.3,1.2952827]
[1761585369756,0.957,1148.1,1146.3,1.2952827]
[1761585370056,0.49488483,1148.0,1146.3,1.2952827]
[1761585370259,0.957,1148.1,1146.3,1.2952827]
[1761585370453,0.49495599,1148.0,1146.3,1.2952827]
[1761585370655,0.957,1148.1,1146.3,1.2952827]
[1761585370956,0.49496776,1148.0,1146.3,1.2952827]
[1761585371157,0.957,1148.1,1146.3,1.2952827]
[1761585371358,0.49505605,1148.0,1146.3,1.2952827]
[1761585371559,0.957,1148.1,1146.3,1.2952827]
[1761585371754,0.49521317,1148.0,1146.3,1.2952827]
[1761585371954,0.957,1148.1,1146.3,1.2952827]
[1761585372155,0.49521444,1148.0,1146.3,1.2952827]
[1761585372458,0.957,1148.1,1146.3,1.2952827]
[1761585372656,0.49530638,1148.0,1146.3,1.2952827]
[1761585372855,0.957,1148.1,1146.3,1.2952827]
[1761585373055,0.49535116,1148.0,1146.3,1.2952827]
[1761585373259,0.957,1148.1,1146.3,1.2952827]
[1761585373459,0.49545389,1148.0,1146.3,1.2952827]
[1761585373656,0.957,1148.1,1146.3,1.2952827]
[1761585373860,0.49546705,1148.0,1146.3,1.2952827]
[1761585374057,0.957,1148.1,1146.3,1.2952827]
[1761585374257,0.49566547,1148.0,1146.3,1.2952827]
[1761585374459,0.49566547,1147.9,1146.3,1.2952827]
[1761585374659,0.957,1148.1,1146.3,1.2952827]
[1761585374863,0.49578098,1148.0,1146.3,1.2952827]
[1761585375161,0.49578098,1147.9,1146.4,1.2952827]
[1761585375361,0.957,1148.1,1146.4,1.2952827]
[1761585375559,0.49626375,1148.0,1146.3,1.2952827]
[1761585375862,0.49626375,1147.9,1146.7,1.2952827]
[1761585376062,0.957,1148.1,1146.6,1.2952827]
[1761585376260,0.49656742,1148.0,1146.8,1.2952827]
[1761585376462,0.49656742,1147.9,1146.8,1.2952827]
[1761585376661,0.49656742,1147.8,1146.8,1.2952827]
[1761585376864,0.957,1148.1,1146.8,1.2952827]
[1761585377166,0.49656179,1148.0,1146.8,1.2952827]
[1761585377465,0.49656179,1147.9,1146.8,1.2952827]
[1761585377762,0.49656179,1147.8,1146.8,1.2952827]
[1761585378064,1.60619127,1148.1,1146.8,1.2952827]
[1761585378360,0.49652287,1148.0,1146.8,1.2952827]
[1761585378559,0.49652287,1147.9,1146.8,1.2952827]
[1761585378764,0.49652287,1147.8,1146.8,1.2952827]
[1761585378962,0.64919127,1148.1,1146.8,1.2952827]
[1761585379161,0.49654205,1148.0,1146.8,1.2952827]
[1761585379363,0.49654205,1147.9,1146.8,1.2952827]
[1761585379559,0.49654205,1147.8,1146.8,1.2952827]
[1761585379761,0.64919127,1148.2,1146.8,1.2952827]
[1761585379960,0.49654889,1148.1,1146.8,1.2952827]
[1761585380264,0.49654889,1148.0,1146.6,1.2952827]
[1761585380464,0.49654889,1147.9,1146.6,1.2952827]
[1761585380662,0.49654889,1147.8,1146.6,1.2952827]
[1761585380962,0.64919127,1148.3,1146.6,1.2952827]
[1761585381165,0.4965154,1148.2,1146.6,1.2952827]
[1761585381362,0.4965154,1148.1,1146.7,1.2952827]
[1761585381564,0.4965154,1148.0,1146.7,1.2952827]
[1761585381762,0.4965154,1147.9,1146.7,1.2952827]
[1761585381966,0.64919127,1148.3,1146.7,1.2952827]
[1761585382266,1.20852657,1148.2,1146.7,1.2952827]
[1761585382464,0.49652657,1148.1,1146.7,1.2952827]
[1761585382766,0.49652657,1148.0,1146.7,1.2952827]
[1761585383066,0.49652657,1147.9,1146.7,1.2952827]
[1761585383260,0.712,1148.2,1146.7,1.2952827]
[1761585383465,0.49652263,1148.1,1146.7,1.2952827]
[1761585383665,0.49652263,1148.0,1146.7,1.2952827]
[1761585383865,0.49652263,1147.9,1146.7,1.2952827]
[1761585384067,0.712,1148.2,1146.7,1.2952827]
[1761585384269,0.49651242,1148.1,1146.7,1.2952827]
[1761585384465,0.49651242,1148.0,1146.7,1.2952827]
[1761585384665,0.49651242,1147.9,1146.7,1.2952827]
[1761585384864,0.712,1148.2,1146.7,1.2952827]
[1761585385068,0.49651417,1148.1,1146.7,1.2952827]
[1761585385268,0.49651417,1148.0,1146.7,1.2952827]
[1761585385468,0.49651417,1147.9,1146.6,1.2952827]
[1761585385764,0.712,1148.2,1146.6,1.2952827]
[1761585385968,0.49668024,1148.1,1146.6,1.2952827]
[1761585386166,0.49668024,1148.0,1146.6,1.2952827]
[1761585386466,0.49668024,1147.9,1146.6,1.2952827]
[1761585386766,0.712,1148.2,1146.6,1.2952827]
[1761585386967,0.49667194,1148.1,1146.6,1.2952827]
[1761585387168,0.49667194,1148.0,1146.6,1.2952827]
[1761585387368,0.49667194,1147.9,1146.6,1.2952827]
[1761585387567,0.712,1148.2,1146.6,1.2952827]
[1761585387766,0.49666386,1148.1,1146.6,1.2952827]
[1761585387970,0.49666386,1148.0,1146.6,1.2952827]
[1761585388168,0.49666386,1147.9,1146.6,1.2952827]
[1761585388369,0.712,1148.2,1146.6,1.2952827]
[1761585388572,0.49665177,1148.1,1146.6,1.2952827]
[1761585388770,0.49665177,1148.0,1146.6,1.2952827]
[1761585388968,0.49665177,1147.9,1146.6,1.2952827]
[1761585389175,0.712,1148.2,1146.6,1.2952827]
[1761585389473,0.712,1148.2,1146.9,0.86864052]
[1761585390774,0.712,1148.2,1147.1,0.86864052]
[1761585391773,0.712,1148.2,1147.2,0.86864052]
[1761585393173,0.712,1148.2,1147.1,0.86864052]
[1761585394078,0.712,1148.2,1147.2,0.86864052]
[1761585399579,0.712,1148.2,1147.3,0.86864052]
[1761585400681,0.712,1148.2,1147.4,0.86864052]
[1761585400978,0.712,1148.2,1147.5,0.86864052]
[1761585402379,0.712,1148.2,1147.4,0.86864052]
[1761585409791,0.65047344,1149.0,1147.3,0.86864052]
[1761585410089,0.65047344,1149.0,1147.2,0.86864052]
[1761585410787,1.045,1148.9,1147.2,0.86864052]
[1761585412593,1.69547344,1148.9,1147.2,0.86864052]
[1761585412892,1.69547344,1148.9,1147.1,0.86864052]
[1761585413192,1.69547344,1148.9,1147.2,0.86864052]
[1761585415295,0.65047344,1148.8,1147.2,0.86864052]
[1761585416089,0.65047344,1148.8,1147.1,0.86864052]
[1761585418596,0.65047344,1148.8,1147.2,0.86864052]
[1761585423603,1.045,1148.9,1146.9,0.86864052]
[1761585423902,1.045,1148.9,1147.1,0.86864052]
[1761585424203,1.045,1148.9,1147.2,0.86864052]
[1761585424402,1.045,1148.9,1147.3,0.86864052]
[1761585426299,1.045,1148.9,1147.4,0.86864052]
[1761585426503,1.045,1148.9,1147.3,0.86864052]
[1761585427302,1.69547344,1148.9,1147.3,0.86864052]
[1761585428103,0.65047344,1148.8,1147.2,0.86864052]
[1761585432810,0.65047344,1148.8,1147.1,0.86864052]
[1761585434711,0.65047344,1148.9,1147.1,0.86864052]
[1761585437312,0.65047344,1148.8,1147.1,0.86864052]
[1761585441316,0.86734882,1149.0,1147.1,0.86864052]
[1761585441514,0.64919084,1148.7,1147.2,0.86864052]
[1761585443517,0.64919084,1148.7,1147.0,1.2952827]
[1761585443518,0.64919084,1148.8,1147.3,0.86864052]
[1761585444016,0.64919084,1148.7,1147.4,0.86864052]
[1761585450320,0.64919084,1148.6,1147.5,0.86864052]
[1761585450724,0.64919084,1148.8,1147.6,0.86864052]
[1761585452629,0.64919084,1148.8,1147.5,0.86864052]
[1761585454327,0.64919084,1148.9,1147.5,0.86864052]
[1761585455832,0.64919084,1148.9,1147.6,0.86864052]
[1761585461237,0.64919084,1148.9,1147.7,0.86864052]
[1761585462639,0.64919084,1149.4,1147.2,0.86864052]
[1761585463039,0.64919084,1149.5,1147.2,0.86864052]
[1761585464239,0.64919084,1149.3,1147.5,0.86864052]
[1761585464448,0.64919084,1149.5,1147.6,0.86864052]
[1761585466440,0.64919084,1149.5,1147.7,0.86864052]
[1761585466836,0.64919084,1149.3,1147.8,0.86864052]
[1761585467337,0.64919084,1149.3,1147.9,0.86864052]
[1761585467940,0.64919084,1149.4,1147.7,0.86864052]
[1761585468638,0.64919084,1149.3,1147.6,0.86864052]
[1761585469238,0.64919084,1149.4,1147.6,0.86864052]
[1761585470842,0.64919084,1149.3,1147.6,0.86864052]
[1761585471139,0.64919084,1149.3,1147.5,0.86864052]
[1761585471344,0.64919084,1149.3,1147.6,0.86864052]
[1761585472543,0.64919084,1149.2,1147.7,0.86864052]
[1761585472840,0.64919084,1149.1,1147.7,0.86864052]
[1761585473445,0.64919084,1149.2,1147.6,0.86864052]
[1761585474638,0.64919084,1149.2,1147.7,0.86864052]
[1761585477246,0.64919084,1149.3,1147.6,0.86864052]
[1761585477945,0.86734882,1149.6,1147.6,0.86864052]
[1761585477946,0.64919084,1149.2,1147.6,0.86864052]
[1761585479547,1.68719084,1149.2,1147.6,0.86864052]
[1761585481046,1.038,1149.2,1147.6,0.86864052]
[1761585481546,1.68719084,1149.2,1147.5,0.86864052]
[1761585481849,0.64919084,1149.1,1147.5,0.86864052]
[1761585482646,0.64919084,1149.1,1147.6,0.86864052]
[1761585482946,0.64919084,1149.1,1147.5,0.86864052]
[1761585485252,0.64919084,1149.1,1147.6,0.86864052]
[1761585485453,1.68719084,1149.2,1147.7,0.86864052]
[1761585486052,1.038,1149.2,1147.5,0.86864052]
[1761585487957,1.038,1149.2,1147.4,0.86864052]
[1761585488557,1.68719084,1149.2,1147.4,0.86864052]
[1761585488757,0.64919084,1149.1,1147.3,0.86864052]
[1761585489155,0.64919084,1149.0,1147.5,0.86864052]
[1761585492155,0.64919084,1148.9,1147.4,0.86864052]
[1761585494159,0.64919084,1148.9,1147.3,0.86864052]
[1761585495260,0.64919084,1149.0,1147.2,0.86864052]
[1761585497264,0.64919084,1149.1,1147.2,0.86864052]
[1761585498067,0.64919084,1148.9,1147.1,0.86864052]
[1761585498268,0.64919084,1148.9,1147.0,0.86864052]
[1761585498467,0.64919084,1148.8,1147.0,0.86864052]
[1761585498669,0.64919084,1148.7,1146.8,0.86864052]
[1761585498866,0.64919084,1148.7,1146.7,0.86864052]
[1761585504269,0.64919084,1148.8,1146.6,0.86864052]
[1761585504473,0.64919084,1148.8,1146.5,0.86864052]
[1761585505673,0.64919084,1148.8,1146.6,0.86864052]
[1761585506269,0.64919084,1148.8,1146.5,0.86864052]
[1761585506473,0.64919084,1148.8,1146.6,0.86864052]
[1761585509873,0.64919084,1148.8,1146.5,0.86864052]
[1761585512275,0.64919084,1148.9,1146.5,0.86864052]
[1761585513276,0.64919084,1148.6,1146.7,0.86864052]
[1761585513480,0.64919084,1148.4,1146.7,0.86864052]
[1761585513878,0.64919084,1148.4,1146.6,0.86864052]
[1761585515878,0.64919084,1148.4,1146.5,0.86864052]
[1761585516282,0.64919084,1148.4,1146.4,1.0202603]
[1761585516980,0.64919084,1148.5,1146.4,1.0202603]
[1761585520185,0.64919084,1148.5,1146.4,0.15161978]
[1761585524988,0.64919084,1148.4,1146.4,0.15161978]
[1761585525191,0.64919084,1148.5,1146.4,0.15161978]
[1761585526492,0.64919084,1148.6,1146.4,0.15161978]
[1761585527497,0.64919084,1148.7,1146.4,0.15161978]
[1761585528996,0.907,1148.6,1146.4,0.15161978]
[1761585529897,0.907,1148.6,1146.5,0.86864052]
[1761585530095,0.907,1148.6,1146.7,0.86864052]
[1761585530596,0.907,1148.6,1146.9,0.86864052]
[1761585531995,0.907,1148.6,1147.0,0.86864052]
[1761585532195,0.907,1148.6,1147.2,0.86864052]
[1761585539306,0.907,1148.6,1147.1,0.86864052]
[1761585540911,0.907,1148.6,1147.0,0.86864052]
[1761585541110,0.907,1148.6,1147.1,0.86864052]
[1761585541509,0.907,1148.6,1146.9,0.86864052]
[1761585544613,0.907,1148.6,1146.8,0.86864052]
[1761585548214,0.907,1148.6,1146.9,0.86864052]
[1761585549018,0.907,1148.6,1146.8,0.86864052]
[1761585550017,0.907,1148.6,1146.9,0.86864052]
[1761585550420,0.907,1148.6,1146.4,0.15161978]
[1761585550421,0.907,1148.6,1147.1,0.86864052]
[1761585550618,0.907,1148.6,1147.2,0.86864052]
[1761585550821,0.907,1148.6,1147.3,0.86864052]
[1761585557320,0.907,1148.6,1147.2,0.86864052]
[1761585558523,0.907,1148.6,1147.1,0.86864052]
[1761585560222,0.907,1148.6,1147.0,0.86864052]
[1761585561223,0.64919084,1148.7,1147.0,0.86864052]
[1761585563528,0.64919084,1148.7,1147.1,0.86864052]
[1761585563731,0.64919084,1148.8,1147.1,0.86864052]
[1761585563928,0.99,1148.7,1147.1,0.86864052]
[1761585564131,1.63919084,1148.7,1147.1,0.86864052]
[1761585565035,0.99,1148.7,1147.1,0.86864052]
[1761585565529,0.99,1148.7,1147.2,0.86864052]
[1761585574938,0.99,1148.7,1146.6,0.86864052]
[1761585575237,0.99,1148.7,1146.7,0.86864052]
[1761585577238,0.99,1148.7,1147.2,0.86864052]
[1761585577644,0.99,1148.7,1147.3,0.86864052]
[1761585579342,0.99,1148.7,1146.9,0.86864052]
[1761585587153,0.99,1148.7,1147.0,0.86864052]
[1761585589356,0.99,1148.7,1147.2,0.86864052]
[1761585589555,0.99,1148.7,1147.3,0.86864052]
[1761585589752,0.99,1148.7,1147.2,0.86864052]
[1761585591558,0.99,1148.7,1147.4,0.86864052]
[1761585600665,0.99,1148.7,1147.5,0.86864052]
[1761585602774,0.99,1148.7,1147.3,0.86864052]
[1761585603067,1.63919084,1148.7,1147.3,0.86864052]
[1761585603473,0.99,1148.7,1147.3,0.86864052]
[1761585605276,1.63919084,1148.7,1147.4,0.86864052]
[1761585612584,1.63919084,1148.7,1147.5,0.86864052]
[1761585612885,0.64919084,1148.6,1147.4,0.86864052]
[1761585613385,0.64919084,1148.5,1147.4,0.86864052]
[1761585617185,0.64919084,1148.6,1147.5,0.86864052]
[1761585621390,0.64919084,1148.5,1147.5,0.86864052]
[1761585623409,0.703,1148.4,1147.4,0.86864052]
[1761585624793,0.703,1148.4,1147.5,0.86864052]
[1761585627389,0.703,1148.4,1147.4,0.86864052]
[1761585627992,0.703,1148.4,1147.0,0.86864052]
[1761585628193,0.703,1148.4,1146.9,0.86864052]
[1761585629393,0.703,1148.4,1147.5,0.86864052]
[1761585630393,0.703,1148.4,1146.7,1.02024643]
[1761585634201,0.703,1148.4,1146.9,0.86864052]
[1761585635201,0.703,1148.4,1147.1,0.86864052]
[1761585635401,0.64919084,1148.3,1147.2,0.86864052]
[1761585636201,0.64919084,1148.3,1147.1,0.86864052]
[1761585636401,1.35219084,1148.4,1146.9,0.86864052]
[1761585637202,0.703,1148.4,1146.9,0.86864052]
[1761585640204,0.703,1148.4,1146.8,0.86864052]
[1761585641407,0.703,1148.4,1146.9,0.86864052]
[1761585642511,1.3509936,1148.4,1147.0,0.86864052]
[1761585642704,0.703,1148.4,1147.0,0.86864052]
[1761585643611,0.703,1148.4,1147.1,0.86864052]
[1761585644312,0.703,1148.4,1147.2,0.86864052]
[1761585652014,0.703,1148.4,1147.1,0.86864052]
[1761585653413,0.703,1148.4,1147.2,0.86864052]
[1761585653610,1.35098692,1148.4,1147.1,0.86864052]
[1761585654717,1.35098692,1148.4,1147.0,0.86864052]
[1761585655712,0.703,1148.4,1146.9,0.86864052]
[1761585656016,0.703,1148.4,1147.0,0.86864052]
[1761585662421,0.703,1148.4,1147.1,0.86864052]
[1761585665422,0.703,1148.4,1147.2,0.86864052]
[1761585665922,0.703,1148.4,1147.1,0.86864052]
[1761585666123,1.35098692,1148.4,1147.1,0.86864052]
[1761585666824,1.35098692,1148.4,1147.0,0.86864052]
[1761585667123,1.35098692,1148.4,1147.1,0.86864052]
[1761585668622,0.703,1148.4,1147.0,0.86864052]
[1761585669629,0.703,1148.4,1147.1,0.86864052]
[1761585671525,0.64798692,1148.5,1147.3,0.86864052]
[1761585673125,0.64798692,1148.6,1147.2,0.86864052]
[1761585673330,0.64798692,1148.7,1147.2,0.86864052]
[1761585673831,0.64798692,1148.7,1147.3,0.86864052]
[1761585674125,0.939,1148.6,1147.3,0.86864052]
[1761585677733,1.58698692,1148.6,1147.3,0.86864052]
[1761585678733,0.939,1148.6,1147.2,0.86864052]
[1761585680335,1.58698692,1148.6,1147.5,0.86864052]
[1761585680537,0.939,1148.6,1147.7,0.86864052]
[1761585681234,0.939,1148.6,1147.6,0.86864052]
[1761585685237,0.64798692,1148.9,1147.6,0.86864052]
[1761585685437,0.64798692,1149.0,1147.7,0.86864052]
[1761585687441,0.64798692,1149.1,1147.6,0.86864052]
[1761585687842,0.64798692,1149.0,1147.5,0.86864052]
[1761585688043,1.109,1148.9,1147.5,0.86864052]
[1761585688241,1.109,1148.9,1147.6,0.86864052]
[1761585688438,1.75698692,1148.9,1147.5,0.86864052]
[1761585688842,1.109,1148.9,1147.3,0.86864052]
[1761585689041,1.75698692,1148.9,1147.2,0.86864052]
[1761585692447,1.75698692,1148.9,1147.1,0.86864052]
[1761585692644,1.75698692,1148.9,1147.2,0.86864052]
[1761585693449,0.64798692,1148.8,1147.3,0.86864052]
[1761585694648,0.64798692,1148.6,1147.1,0.86864052]
[1761585695947,0.64798692,1148.5,1147.1,0.86864052]
[1761585696245,0.64798692,1148.4,1147.1,0.86864052]
[1761585702050,0.64798692,1148.4,1147.0,0.86864052]
[1761585702458,0.64798692,1148.6,1146.8,0.86864052]
[1761585703159,0.64798692,1148.6,1146.7,0.15160591]
[1761585703160,0.64798692,1148.6,1146.7,1.02024643]
[1761585703459,0.64798692,1148.3,1146.9,0.86864052]
[1761585703759,0.64798692,1148.3,1146.5,0.86864052]
[1761585703958,0.64798692,1148.3,1146.5,1.02032639]
[1761585705261,0.64798692,1148.3,1146.5,0.15168587]
[1761585705462,0.64798692,1148.1,1146.5,0.86864052]
[1761585705759,0.64798692,1148.3,1146.3,0.15171232]
[1761585706155,1.109,1148.9,1146.3,0.15171232]
[1761585706156,0.64798692,1148.5,1146.3,0.15171232]
[1761585707661,0.64798692,1148.4,1146.3,0.15171232]
[1761585709257,0.64798692,1148.3,1146.3,1.02035284]
[1761585709461,0.64798692,1148.3,1146.3,0.15171232]
[1761585709661,0.64798692,1148.4,1146.3,0.15171232]
[1761585710367,0.64798692,1148.5,1146.3,0.15171232]
[1761585711867,0.64798692,1148.3,1146.5,0.86864052]
[1761585716078,0.64798692,1148.3,1146.4,0.86864052]
[1761585717380,0.86734882,1148.5,1146.4,0.86864052]
[1761585717679,0.86734882,1148.5,1146.3,0.15171232]
[1761585717880,1.3010232,1148.7,1146.3,0.15171232]
[1761585718180,1.05,1149.6,1146.3,0.15171232]
[1761585718581,0.64625592,1148.3,1146.3,0.15171232]
[1761585718879,0.86167456,1148.6,1146.3,0.15171232]
[1761585719081,0.64609392,1148.3,1146.3,0.15171232]
[1761585719377,0.86167456,1148.6,1146.3,0.15171232]
[1761585719582,1.2925118,1148.9,1146.3,0.15171232]
[1761585719781,0.86117812,1148.6,1146.3,0.15171232]
[1761585720079,0.4926534,1148.5,1146.3,0.15171232]
[1761585720682,0.86117812,1148.6,1146.3,0.15171232]
[1761585720882,0.64571683,1148.3,1146.3,0.15171232]
[1761585721082,0.49254576,1148.2,1146.3,0.15171232]
[1761585721279,0.49254576,1148.1,1146.3,0.15171232]
[1761585721578,0.49254576,1148.0,1146.3,0.15171232]
[1761585721778,0.49254576,1147.9,1146.3,0.15171232]
[1761585721983,0.64571683,1148.4,1146.3,0.15171232]
[1761585722179,1.13825753,1148.3,1146.3,0.15171232]
[1761585722383,0.4925407,1148.2,1146.3,0.15171232]
[1761585722582,0.4925407,1148.1,1146.3,0.15171232]
[1761585722885,0.4925407,1148.0,1146.3,0.15171232]
[1761585723083,0.4925407,1147.9,1146.3,0.15171232]
[1761585723285,0.64571683,1148.3,1146.3,0.15171232]
[1761585723586,0.49235963,1148.2,1146.3,0.15171232]
[1761585723782,0.49235963,1148.1,1146.3,0.15171232]
[1761585723981,0.49235963,1148.0,1146.3,0.15171232]
[1761585724183,0.49235963,1147.9,1146.3,0.15171232]
[1761585724484,0.64571683,1148.4,1146.3,0.15171232]
[1761585724685,1.13800802,1148.3,1146.3,0.15171232]
[1761585724879,0.49229119,1148.2,1146.3,0.15171232]
[1761585725085,0.49229119,1148.1,1146.3,0.15171232]
[1761585725386,0.49229119,1148.0,1146.3,0.15171232]
[1761585725582,0.49229119,1147.9,1146.3,0.15171232]
[1761585725786,0.64571683,1148.3,1146.3,0.15171232]
[1761585725982,0.49219877,1148.2,1146.3,0.15171232]
[1761585726186,0.49219877,1148.1,1146.3,1.44851372]
[1761585726386,0.64571683,1148.4,1146.4,1.2968014]
[1761585726583,0.49225174,1148.3,1146.4,1.2968014]
[1761585726787,0.49225174,1148.2,1146.4,1.2968014]
[1761585726985,0.64571683,1148.4,1146.4,1.2968014]
[1761585726986,0.49225174,1148.1,1146.4,1.2968014]
[1761585727184,0.64571683,1148.4,1146.4,1.2968014]
[1761585727381,0.49223138,1148.3,1146.4,1.2968014]
[1761585727583,0.49223138,1148.2,1146.4,1.2968014]
[1761585727787,0.49223138,1148.1,1146.4,1.2968014]
[1761585727983,0.64571683,1148.4,1146.4,1.2968014]
[1761585728184,0.49223121,1148.3,1146.4,1.2968014]
[1761585728485,0.49223121,1148.2,1146.4,1.2968014]
[1761585728682,0.49223121,1148.1,1146.4,1.2968014]
[1761585728882,0.64571683,1148.4,1146.4,1.2968014]
[1761585729085,0.49222371,1148.3,1146.4,1.2968014]
[1761585729283,0.49222371,1148.2,1146.4,1.2968014]
[1761585729487,0.49222371,1148.1,1146.4,1.2968014]
[1761585729685,0.64571683,1148.4,1146.4,1.2968014]
[1761585729885,0.49221622,1148.3,1146.4,1.2968014]
[1761585730088,0.49221622,1148.2,1146.4,1.2968014]
[1761585730388,0.49221622,1148.1,1146.4,1.2968014]
[1761585730685,0.64571683,1148.4,1146.4,1.2968014]
[1761585730885,0.49233917,1148.3,1146.4,1.2968014]
[1761585731085,0.49233917,1148.2,1146.4,1.2968014]
[1761585731289,0.49233917,1148.1,1146.4,1.2968014]
[1761585731490,0.64571683,1148.4,1146.4,1.2968014]
[1761585731790,0.49235381,1148.3,1146.4,1.2968014]
[1761585731986,0.49235381,1148.2,1146.4,1.2968014]
[1761585732184,0.49235381,1148.1,1146.4,1.2968014]
[1761585732387,0.49224034,1148.0,1146.3,1.44851372]
[1761585732586,0.64571683,1148.4,1146.3,1.44851372]
[1761585732890,0.49224848,1148.3,1146.3,1.44851372]
[1761585733088,0.49224848,1148.2,1146.3,1.44851372]
[1761585733285,0.49224848,1148.1,1146.3,1.44851372]
[1761585733489,0.49224848,1148.0,1146.3,1.44851372]
[1761585733689,0.64571683,1148.3,1146.3,1.44851372]
[1761585733889,0.49229458,1148.2,1146.3,1.44851372]
[1761585734086,0.49229458,1148.1,1146.3,1.44851372]
[1761585734289,0.49229458,1148.0,1146.3,0.15171232]
[1761585734490,0.49229458,1147.9,1146.3,0.15171232]
[1761585734787,0.64571683,1148.4,1146.3,0.15171232]
[1761585735091,0.49222934,1148.3,1146.3,0.15171232]
[1761585735292,0.49222934,1148.2,1146.3,0.15171232]
[1761585735487,0.49222934,1148.1,1146.3,0.15171232]
[1761585735689,0.49222934,1148.0,1146.3,0.15171232]
[1761585735886,0.49222934,1147.9,1146.3,0.15171232]
[1761585736090,0.64571683,1148.4,1146.3,0.15171232]
[1761585736289,0.49233085,1148.3,1146.3,0.15171232]
[1761585736486,0.49233085,1148.2,1146.3,0.15171232]
[1761585736686,0.49233085,1148.1,1146.3,0.15171232]
[1761585736989,0.49233085,1148.0,1146.3,0.15171232]
[1761585737186,0.49233085,1147.9,1146.3,0.15171232]
[1761585737390,0.64571683,1148.4,1146.3,0.15171232]
[1761585737590,0.49219605,1148.3,1146.3,0.15171232]
[1761585737790,0.49219605,1148.2,1146.3,0.15171232]
[1761585737990,0.49219605,1148.1,1146.3,0.15171232]
[1761585738189,0.49219605,1148.0,1146.3,0.15171232]
[1761585738389,0.49219605,1147.9,1146.3,0.15171232]
[1761585738592,0.64571683,1148.4,1146.3,0.15171232]
[1761585738887,0.49218243,1148.3,1146.3,0.15171232]
[1761585739091,0.49218243,1148.2,1146.3,0.15171232]
[1761585739289,0.49218243,1148.1,1146.3,0.15171232]
[1761585739489,0.49218243,1148.0,1146.3,1.44851372]
[1761585739691,0.64571683,1148.4,1146.3,1.44851372]
[1761585739892,0.49222853,1148.3,1146.3,1.44851372]
[1761585740091,0.49222853,1148.2,1146.3,1.44851372]
[1761585740294,0.49222853,1148.1,1146.3,1.44851372]
[1761585740494,0.49222853,1148.0,1146.3,1.44851372]
[1761585740695,0.64571683,1148.4,1146.3,1.44851372]
[1761585740891,0.4922614,1148.3,1146.3,1.44851372]
[1761585741195,0.4922614,1148.2,1146.3,1.44851372]
[1761585741495,0.4922614,1148.1,1146.3,1.44851372]
[1761585741694,0.4922614,1148.0,1146.3,1.44851372]
[1761585741896,0.64571683,1148.3,1146.3,1.44851372]
[1761585742096,0.49235499,1148.2,1146.3,1.44851372]
[1761585742293,0.49235499,1148.1,1146.3,1.44851372]
[1761585742595,0.64571683,1148.3,1146.3,1.44851372]
[1761585742596,0.49235499,1148.0,1146.3,1.44851372]
[1761585742795,0.64571683,1148.3,1146.3,1.44851372]
[1761585742995,0.49247562,1148.2,1146.3,1.44851372]
[1761585743197,0.49247562,1148.1,1146.3,1.44851372]
[1761585743493,0.49247562,1148.0,1146.4,1.2968014]
[1761585743697,0.64571683,1148.3,1146.4,1.2968014]
[1761585743896,0.49260718,1148.2,1146.4,1.2968014]
[1761585744192,0.49260718,1148.1,1146.4,1.2968014]
[1761585744393,0.49260718,1148.0,1146.3,1.44851372]
[1761585744594,0.49260718,1147.9,1146.3,1.44851372]
[1761585744796,0.64571683,1148.3,1146.3,1.44851372]
[1761585744995,0.49272335,1148.2,1146.3,1.44851372]
[1761585745196,0.49272335,1148.1,1146.3,1.44851372]
[1761585745492,0.49272335,1148.0,1146.3,1.44851372]
[1761585745794,0.49272335,1147.9,1146.3,1.44851372]
[1761585745996,0.64571683,1148.3,1146.3,1.44851372]
[1761585746194,0.49268505,1148.2,1146.3,0.15171232]
[1761585746393,0.49268505,1148.1,1146.3,0.15171232]
[1761585746592,0.49268505,1148.0,1146.3,0.15171232]
[1761585746897,0.49268505,1147.9,1146.3,0.15171232]
[1761585747195,0.64571683,1148.3,1146.3,0.15171232]
[1761585747396,0.49315028,1148.2,1146.3,0.15171232]
[1761585747594,0.49315028,1148.1,1146.3,0.15171232]
[1761585747792,0.49315028,1148.0,1146.3,0.15171232]
[1761585747999,0.49315028,1147.9,1146.3,0.15171232]
[1761585748297,0.49316594,1147.8,1146.3,1.44851372]
[1761585748492,0.64571683,1148.3,1146.3,1.44851372]
[1761585748694,0.49318359,1148.2,1146.3,1.44851372]
[1761585748897,0.49318359,1148.1,1146.3,1.44851372]
[1761585749196,0.49318359,1148.0,1146.3,1.44851372]
[1761585749392,0.49318359,1147.9,1146.3,1.44851372]
[1761585749598,0.49318359,1147.8,1146.3,1.44851372]
[1761585749798,0.64571683,1148.2,1146.3,1.44851372]
[1761585749996,0.49319475,1148.1,1146.3,1.44851372]
[1761585750195,0.49319475,1148.0,1146.3,1.44851372]
[1761585750399,0.49319475,1147.9,1146.3,1.44851372]
[1761585750600,0.49319475,1147.8,1146.3,1.44851372]
[1761585750798,0.49319475,1147.7,1146.2,1.2968014]
[1761585750996,0.49388676,1147.6,1145.5,1.2968014]
[1761585751295,0.49388676,1147.5,1146.1,0.15174805]
[1761585751496,0.49388676,1147.4,1146.1,0.15174805]
[1761585751695,0.64571683,1147.8,1146.1,0.15174805]
[1761585751897,0.493781,1147.7,1146.1,0.15174805]
[1761585752099,0.493781,1147.6,1146.1,0.15174805]
[1761585752301,0.493781,1147.5,1146.1,0.15174805]
[1761585752501,0.493781,1147.4,1146.1,0.15174805]
[1761585752698,0.493781,1147.3,1146.1,0.15174805]
[1761585752905,0.64571683,1147.7,1146.1,0.15174805]
[1761585753102,1.13945358,1147.6,1146.1,0.15174805]
[1761585753299,0.49373675,1147.5,1146.1,0.15174805]
[1761585753503,0.49373675,1147.4,1146.1,0.15174805]
[1761585753702,0.49373675,1147.3,1146.1,0.15174805]
[1761585753903,0.64571683,1147.6,1146.1,0.15174805]
[1761585754102,0.49370967,1147.5,1146.1,0.15174805]
[1761585754299,0.49370967,1147.4,1146.1,0.15174805]
[1761585754504,0.49370967,1147.3,1146.1,0.15174805]